bitfinex-derivatives/quotes_BTCF0:USTF0_20250904
["timestamp","ask_amount","ask_price","bid_price","bid_amount"]
[1756958219188,1.20033252,111240.0,111230.0,1.24384888]
[1756958220586,1.13004062,111240.0,111230.0,1.24384888]
[1756958220787,1.08180738,111240.0,111230.0,1.24384888]
[1756958221290,1.05910738,111240.0,111230.0,1.49384888]
[1756958221484,1.05910738,111240.0,111230.0,1.49372888]
[1756958221886,1.10734062,111240.0,111230.0,1.49372888]
[1756958222190,1.05910738,111240.0,111230.0,1.49372888]
[1756958223492,1.05910738,111240.0,111230.0,1.49350789]
[1756958224689,1.08180738,111240.0,111230.0,1.49346789]
[1756958225095,1.08180738,111240.0,111230.0,1.49342789]
[1756958225290,1.08180738,111240.0,111230.0,1.12181151]
[1756958225495,1.08180738,111240.0,111230.0,1.49342789]
[1756958226293,1.08180738,111240.0,111230.0,0.66834789]
[1756958226606,1.08180738,111240.0,111230.0,1.12177151]
[1756958226793,1.08180738,111240.0,111230.0,0.66834789]
[1756958226992,1.08180738,111240.0,111230.0,1.49338789]
[1756958232199,1.08180738,111240.0,111230.0,0.66834789]
[1756958232408,1.08180738,111240.0,111230.0,1.49322789]
[1756958232706,1.08180738,111240.0,111230.0,0.66834789]
[1756958232908,1.08180738,111240.0,111230.0,1.49322789]
[1756958233703,1.08180738,111240.0,111230.0,0.66834789]
[1756958233906,1.08180738,111240.0,111230.0,1.49318789]
[1756958234505,1.13004062,111240.0,111230.0,1.49318789]
[1756958235706,1.13004062,111240.0,111230.0,0.65936638]
[1756958235905,1.13004062,111240.0,111230.0,1.48420638]
[1756958236205,1.13011255,111240.0,111230.0,1.48420638]
[1756958236405,1.13011255,111240.0,111230.0,1.48416638]
[1756958236596,1.13011255,111240.0,111230.0,0.03775]
[1756958236803,1.77487989,111240.0,111230.0,0.8248]
[1756958237706,1.77487989,111240.0,111220.0,0.01411]
[1756958237909,0.43195612,111230.0,111220.0,0.03672]
[1756958238101,0.45353543,111230.0,111220.0,0.86138]
[1756958238797,0.45353543,111230.0,111220.0,0.86238]
[1756958240209,0.45753543,111230.0,111220.0,0.86338]
[1756958240506,0.45753543,111230.0,111220.0,0.86238]
[1756958240707,0.45953543,111230.0,111220.0,0.86338]
[1756958243511,0.43795612,111230.0,111220.0,0.86338]
[1756958243708,0.45952707,111230.0,111220.0,0.86338]
[1756958245109,0.45952707,111230.0,111220.0,1.23499638]
[1756958246111,0.41131095,111230.0,111220.0,1.23499638]
[1756958246611,0.41131095,111230.0,111220.0,0.41023638]
[1756958246812,0.41131095,111230.0,111220.0,0.86322]
[1756958247216,0.78292733,111230.0,111220.0,0.86322]
[1756958247605,0.41131095,111230.0,111220.0,0.86322]
[1756958247912,0.45952707,111230.0,111220.0,0.86322]
[1756958256409,0.45952707,111230.0,111220.0,0.86302]
[1756958256410,0.80952707,111230.0,111220.0,0.86302]
[1756958256919,0.45952707,111230.0,111220.0,0.86302]
[1756958257312,0.83114345,111230.0,111220.0,0.86302]
[1756958258019,0.45952707,111230.0,111220.0,0.86302]
[1756958258223,0.83114345,111230.0,111220.0,0.86302]
[1756958258922,0.45952707,111230.0,111220.0,0.86302]
[1756958259618,0.45952707,111230.0,111220.0,1.23463638]
[1756958261220,0.41131095,111230.0,111220.0,1.23463638]
[1756958261724,0.45952707,111230.0,111220.0,1.23463638]
[1756958262324,0.45952707,111230.0,111220.0,0.86302]
[1756958262525,0.45952707,111230.0,111220.0,1.23463638]
[1756958268734,0.41131095,111230.0,111220.0,1.23443638]
[1756958268933,0.45952707,111230.0,111220.0,1.23443638]
[1756958271335,0.45952707,111230.0,111220.0,0.86282]
[1756958271527,0.45952707,111230.0,111220.0,1.23443638]
[1756958272322,0.45952707,111230.0,111220.0,0.03862]
[1756958272526,0.45952707,111230.0,111220.0,1.23435638]
[1756958273633,0.45952707,111230.0,111220.0,0.86274]
[1756958277533,0.41131095,111230.0,111220.0,0.86274]
[1756958278537,0.47568515,111230.0,111220.0,0.86274]
[1756958279938,0.47568515,111230.0,111220.0,1.23435638]
[1756958281137,0.47568515,111230.0,111220.0,0.86274]
[1756958282139,0.11488515,111230.0,111220.0,0.86274]
[1756958282331,0.47568515,111230.0,111220.0,0.86274]
[1756958284544,0.45954786,111230.0,111220.0,0.86274]
[1756958286959,0.45954786,111230.0,111220.0,0.03862]
[1756958287148,0.45954786,111230.0,111220.0,0.86238]
[1756958290457,0.45954786,111230.0,111220.0,0.8623]
[1756958293060,0.45954786,111230.0,111220.0,0.03862]
[1756958293262,0.45954786,111230.0,111220.0,0.86222]
[1756958297063,0.45954786,111230.0,111220.0,1.23397843]
[1756958297865,0.45954786,111230.0,111220.0,0.41037843]
[1756958298166,0.43660786,111230.0,111220.0,1.23389843]
[1756958299274,0.43660786,111230.0,111220.0,1.49909843]
[1756958303774,0.43660786,111230.0,111220.0,1.12734]
[1756958303975,0.43660786,111230.0,111220.0,1.49909843]
[1756958312180,0.46020396,111230.0,111220.0,1.12702]
[1756958312387,0.46020396,111230.0,111220.0,1.49877843]
[1756958314483,0.41196705,111230.0,111220.0,1.49877843]
[1756958314883,0.63196705,111230.0,111220.0,1.49877843]
[1756958315784,0.60837705,111230.0,111220.0,1.49877843]
[1756958316982,0.60837245,111230.0,111220.0,1.49877843]
[1756958317184,0.60837245,111230.0,111220.0,1.23357843]
[1756958317779,0.24757245,111230.0,111220.0,2.19945943]
[1756958317986,0.40903691,111250.0,111240.0,0.03859]
[1756958318179,0.64903691,111250.0,111240.0,1.23338843]
[1756958319087,0.64903691,111250.0,111240.0,1.23438843]
[1756958319288,0.65303691,111250.0,111240.0,1.23438843]
[1756958319685,0.65303691,111250.0,111240.0,0.41134843]
[1756958319890,1.05238534,111250.0,111240.0,0.86359]
[1756958320290,1.05238534,111250.0,111240.0,0.04059]
[1756958320592,1.05238534,111250.0,111240.0,0.86359]
[1756958321793,1.12432418,111250.0,111240.0,0.86359]
[1756958326593,0.72897575,111250.0,111240.0,1.23534843]
[1756958327794,0.75342575,111250.0,111240.0,0.41234843]
[1756958328000,0.75342575,111250.0,111240.0,1.23518843]
[1756958329104,0.75342575,111250.0,111240.0,1.50038843]
[1756958329998,0.77485263,111250.0,111240.0,1.50038843]
[1756958330300,0.75040263,111250.0,111240.0,1.50038843]
[1756958330500,0.70216572,111250.0,111240.0,1.87214686]
[1756958330797,0.70216572,111250.0,111240.0,1.50038843]
[1756958331099,0.75040263,111250.0,111240.0,1.50038843]
[1756958331595,0.02942688,111250.0,111240.0,3.22646372]
[1756958339205,0.02942688,111250.0,111240.0,2.97646372]
[1756958339704,0.02940824,111250.0,111240.0,2.97646372]
[1756958340396,0.02940824,111250.0,111240.0,1.12827]
[1756958340397,0.41465824,111250.0,111240.0,1.12827]
[1756958340596,0.41465824,111250.0,111240.0,1.50002843]
[1756958340804,0.41465824,111250.0,111240.0,1.23478843]
[1756958341307,0.41465824,111250.0,111240.0,0.41234843]
[1756958341507,0.41465824,111250.0,111240.0,1.23478843]
[1756958345707,1.38641667,111250.0,111240.0,0.04059]
[1756958345912,1.09187358,111250.0,111240.0,0.84829]
[1756958346206,1.46187358,111250.0,111240.0,0.84829]
[1756958346910,1.41187358,111250.0,111240.0,0.84829]
[1756958347408,1.4118019,111250.0,111240.0,0.84829]
[1756958348504,1.0845819,111250.0,111240.0,0.86281]
[1756958351211,0.71289515,111250.0,111240.0,0.86281]
[1756958351417,1.0845819,111250.0,111240.0,0.86281]
[1756958351915,1.03634499,111250.0,111240.0,0.86281]
[1756958352819,1.0845819,111250.0,111240.0,0.86281]
[1756958353117,1.03634499,111250.0,111240.0,0.86281]
[1756958353817,1.0845819,111250.0,111240.0,0.86281]
[1756958354518,1.03634499,111250.0,111240.0,0.86281]
[1756958354920,1.40356499,111250.0,111240.0,0.002]
[1756958355114,1.40356499,111250.0,111240.0,0.82416]
[1756958357216,1.35356499,111250.0,111240.0,0.82416]
[1756958357422,1.40169717,111250.0,111240.0,0.82416]
[1756958357916,1.40169718,111250.0,111240.0,0.84886]
[1756958358110,1.35356499,111250.0,111240.0,0.84886]
[1756958358315,1.40170477,111250.0,111240.0,0.84886]
[1756958360523,1.52339152,111250.0,111240.0,0.002]
[1756958360728,1.41793919,111250.0,111240.0,0.82408]
[1756958364029,1.04625244,111250.0,111240.0,0.82408]
[1756958364230,1.41793919,111250.0,111240.0,0.82408]
[1756958365932,1.41793919,111250.0,111230.0,0.0001]
[1756958366138,1.95750224,111240.0,111230.0,0.0001]
[1756958366337,2.28891048,111240.0,111220.0,0.0001]
[1756958366537,0.82106725,111230.0,111220.0,0.0248]
[1756958366729,1.16247549,111230.0,111220.0,0.0247]
[1756958367737,1.16247549,111230.0,111220.0,0.0257]
[1756958367936,1.16347549,111230.0,111220.0,0.0267]
[1756958368239,1.16547549,111230.0,111220.0,0.0267]
[1756958369041,1.16547549,111230.0,111220.0,0.04141]
[1756958369538,1.16447549,111230.0,111220.0,0.04041]
[1756958369740,1.17663276,111230.0,111220.0,0.04141]
[1756958370244,1.17763276,111230.0,111220.0,0.04141]
[1756958370842,1.16847549,111230.0,111220.0,0.04141]
[1756958371637,1.17758139,111230.0,111220.0,0.04141]
[1756958371840,1.17758139,111230.0,111220.0,0.86333]
[1756958372343,0.80589464,111230.0,111220.0,0.86333]
[1756958372642,1.17758139,111230.0,111220.0,0.86333]
[1756958374442,1.16152229,111230.0,111220.0,0.86333]
[1756958374839,0.78983554,111230.0,111220.0,0.86333]
[1756958375047,0.78072964,111230.0,111220.0,0.86333]
[1756958375238,1.15241639,111230.0,111220.0,0.86333]
[1756958377545,0.78072964,111230.0,111220.0,0.86333]
[1756958377745,1.15241639,111230.0,111220.0,0.86333]
[1756958378545,0.78072964,111230.0,111220.0,0.86333]
[1756958378740,1.15241639,111230.0,111220.0,0.86333]
[1756958379642,1.15241639,111230.0,111220.0,0.04141]
[1756958379948,1.15241639,111230.0,111220.0,0.86325]
[1756958381942,1.15742639,111230.0,111220.0,0.82384]
[1756958382148,1.10936499,111230.0,111220.0,0.82384]
[1756958382745,1.10936499,111230.0,111220.0,0.84791]
[1756958383051,1.10936499,111230.0,111220.0,0.02607]
[1756958384442,1.17348549,111230.0,111220.0,0.02607]
[1756958385152,1.16847549,111230.0,111220.0,0.04009]
[1756958385859,1.17348549,111230.0,111220.0,0.002]
[1756958386546,1.17348549,111230.0,111220.0,0.02607]
[1756958387454,1.10936499,111230.0,111220.0,0.02607]
[1756958387748,1.10435499,111230.0,111220.0,0.04009]
[1756958388853,1.16855295,111230.0,111220.0,0.04009]
[1756958390457,1.10435499,111230.0,111220.0,0.04009]
[1756958391157,0.73266824,111230.0,111220.0,0.04009]
[1756958391356,1.16858306,111230.0,111220.0,0.04009]
[1756958391851,1.22858306,111230.0,111220.0,0.04009]
[1756958392455,1.16435499,111230.0,111220.0,0.04009]
[1756958393046,0.78435499,111230.0,111220.0,0.04009]
[1756958393251,1.10435499,111230.0,111220.0,0.04009]
[1756958393457,0.45266824,111230.0,111220.0,0.04009]
[1756958394058,0.51689631,111230.0,111220.0,0.04009]
[1756958394253,0.88858306,111230.0,111220.0,0.04009]
[1756958394455,0.88858306,111230.0,111220.0,0.41177675]
[1756958394657,0.88858306,111230.0,111220.0,0.04009]
[1756958394658,0.51689631,111230.0,111220.0,0.04009]
[1756958395045,0.47689631,111230.0,111220.0,0.04009]
[1756958395262,0.84858306,111230.0,111220.0,0.04009]
[1756958398448,0.78435499,111230.0,111220.0,0.04009]
[1756958398955,0.41266824,111230.0,111220.0,0.66177675]
[1756958399150,0.41266824,111230.0,111220.0,0.41177675]
[1756958399346,0.46090947,111230.0,111220.0,0.41177675]
[1756958399653,0.46091119,111230.0,111220.0,0.41177675]
[1756958400257,0.43645119,111230.0,111220.0,0.66177675]
[1756958400558,0.41177824,111230.0,111220.0,0.66177675]
[1756958401063,0.41177824,111230.0,111220.0,0.29009]
[1756958401556,0.41177824,111230.0,111220.0,0.66177675]
[1756958402363,0.41177824,111230.0,111220.0,1.48357675]
[1756958402959,0.78346499,111230.0,111220.0,0.86189]
[1756958403155,1.21671794,111230.0,111220.0,0.002]
[1756958403353,1.23270306,111230.0,111220.0,0.8238]
[1756958403551,0.02858,111220.0,111210.0,0.82186]
[1756958403862,1.13926151,111220.0,111200.0,0.02744781]
[1756958404066,0.80425143,111210.0,111200.0,0.06553781]
[1756958404362,0.82565967,111210.0,111200.0,0.88719781]
[1756958404563,0.77746499,111210.0,111200.0,1.14610549]
[1756958404754,0.38220824,111210.0,111200.0,0.69603224]
[1756958404957,0.38220824,111210.0,111200.0,1.51779224]
[1756958405156,0.38220824,111210.0,111200.0,1.51879224]
[1756958405659,0.40577824,111210.0,111200.0,1.14774549]
[1756958405864,0.40677824,111210.0,111200.0,1.51943224]
[1756958406257,0.38320824,111210.0,111200.0,1.51943224]
[1756958406566,0.77946499,111210.0,111200.0,0.88983781]
[1756958406965,0.40777824,111210.0,111200.0,0.88983781]
[1756958407266,0.40777824,111210.0,111200.0,1.26152456]
[1756958407570,0.40777824,111210.0,111200.0,1.26169847]
[1756958407950,0.38420824,111210.0,111200.0,1.26169847]
[1756958408350,0.02340824,111210.0,111200.0,0.88983781]
[1756958408554,0.02340824,111210.0,111200.0,1.26169847]
[1756958408555,0.40777824,111210.0,111200.0,1.26169847]
[1756958409361,0.40777824,111210.0,111200.0,0.88983781]
[1756958409667,0.40777824,111210.0,111200.0,1.26169847]
[1756958414955,0.38420824,111210.0,111200.0,1.26169847]
[1756958415170,0.02340824,111210.0,111200.0,1.26169847]
[1756958415372,0.38420824,111210.0,111200.0,1.26169847]
[1756958415561,0.02340824,111210.0,111200.0,1.26169847]
[1756958415868,0.38420824,111210.0,111200.0,1.26169847]
[1756958418071,0.38420824,111210.0,111200.0,1.51169847]
[1756958418367,0.02340824,111210.0,111200.0,3.36808045]
[1756958419271,0.02340824,111210.0,111200.0,2.25249847]
[1756958419470,0.002,111210.0,111200.0,2.34239607]
[1756958419773,0.002,111210.0,111200.0,2.71425673]
[1756958420868,0.002,111210.0,111200.0,3.45797805]
[1756958426366,0.3608,111240.0,111230.0,0.03824]
[1756958426367,0.38547,111240.0,111230.0,0.03824]
[1756958426561,0.40682297,111240.0,111230.0,1.23530066]
[1756958426969,0.40682297,111240.0,111230.0,0.41010066]
[1756958427171,0.40682297,111240.0,111230.0,1.23538066]
[1756958427670,0.41082297,111240.0,111230.0,1.23638066]
[1756958427873,0.05002297,111240.0,111230.0,1.23638066]
[1756958428568,0.03035297,111240.0,111230.0,1.23738066]
[1756958428774,0.28035297,111240.0,111230.0,1.23738066]
[1756958428966,0.03035297,111240.0,111230.0,1.23738066]
[1756958429774,0.03035297,111240.0,111230.0,3.13894066]
[1756958430871,0.03035297,111240.0,111230.0,2.76708]
[1756958431075,0.03035297,111240.0,111230.0,3.13894066]
[1756958431276,0.009,111240.0,111230.0,3.49974066]
[1756958432281,0.009,111240.0,111230.0,3.58961406]
[1756958432473,0.009,111240.0,111230.0,3.65994103]
[1756958433175,0.009,111240.0,111230.0,4.03180169]
[1756958433369,0.009,111240.0,111230.0,4.28180169]
[1756958433681,0.009,111240.0,111230.0,5.02552301]
[1756958433977,0.3608,111260.0,111230.0,5.03552301]
[1756958434175,0.40679036,111260.0,111250.0,0.41010066]
[1756958434372,0.38212036,111260.0,111250.0,1.23718066]
[1756958434677,0.02132036,111260.0,111250.0,1.23718066]
[1756958435077,0.02132036,111260.0,111250.0,0.41010066]
[1756958435274,0.0001,111270.0,111250.0,1.59778066]
[1756958435479,0.02477,111270.0,111260.0,0.41010066]
[1756958435681,0.04608,111270.0,111260.0,0.41010066]
[1756958436183,0.04608,111270.0,111260.0,0.03824]
[1756958436478,0.29608,111270.0,111260.0,0.4192852]
[1756958436878,0.30408,111270.0,111260.0,0.4212852]
[1756958437071,0.30408,111270.0,111260.0,0.04942454]
[1756958437272,0.30908,111270.0,111260.0,0.4222852]
[1756958438168,0.05908,111270.0,111260.0,0.4222852]
[1756958438374,0.05408,111270.0,111260.0,1.2489652]
[1756958438974,0.04808,111270.0,111260.0,1.2479652]
[1756958439174,0.05108,111270.0,111260.0,1.2488452]
[1756958439375,0.41188,111270.0,111260.0,0.41210066]
[1756958439570,1.03374066,111270.0,111260.0,0.04024]
[1756958439874,1.35074066,111270.0,111260.0,0.86672]
[1756958440177,1.03074066,111270.0,111260.0,0.86672]
[1756958440984,0.65888,111270.0,111260.0,0.86672]
[1756958444084,0.65888,111270.0,111260.0,1.23858066]
[1756958448277,0.65888,111270.0,111260.0,0.03924]
[1756958448483,0.65888,111270.0,111260.0,0.86556]
[1756958448683,0.65888,111270.0,111260.0,1.23742066]
[1756958450186,0.65888,111270.0,111260.0,0.86556]
[1756958450390,0.65888,111270.0,111260.0,1.23742066]
[1756958451191,0.65888,111270.0,111260.0,0.41110066]
[1756958451392,0.70707468,111270.0,111260.0,1.23866066]
[1756958451691,0.65888,111270.0,111260.0,1.23866066]
[1756958452291,0.70707468,111270.0,111260.0,1.23866066]
[1756958454895,0.70707468,111270.0,111260.0,0.8668]
[1756958455096,0.70707468,111270.0,111260.0,1.23866066]
[1756958455395,0.65888,111270.0,111260.0,1.23866066]
[1756958455695,0.38421,111270.0,111260.0,1.23866066]
[1756958455995,0.43235791,111270.0,111260.0,1.23866066]
[1756958456997,0.40822,111270.0,111260.0,0.41110066]
[1756958457198,0.40822,111270.0,111260.0,1.23806066]
[1756958457498,0.47244807,111270.0,111260.0,1.23806066]
[1756958460194,0.47251237,111270.0,111260.0,1.23806066]
[1756958462606,0.47251237,111270.0,111260.0,1.23738066]
[1756958464507,0.4082843,111270.0,111260.0,1.23738066]
[1756958465708,0.47251237,111270.0,111260.0,1.23738066]
[1756958467809,0.40830684,111270.0,111260.0,1.23738066]
[1756958468004,0.43255542,111270.0,111260.0,1.23738066]
[1756958468204,0.43255567,111270.0,111260.0,1.23738066]
[1756958468503,0.07175567,111270.0,111260.0,1.23738066]
[1756958469401,0.07175567,111270.0,111260.0,1.23689712]
[1756958471209,0.07175567,111270.0,111260.0,1.50209712]
[1756958471411,0.02349684,111270.0,111260.0,1.50209712]
[1756958471605,0.02349684,111270.0,111260.0,1.75209712]
[1756958471803,0.02349684,111270.0,111260.0,2.11289712]
[1756958473505,0.02349684,111270.0,111260.0,1.28661712]
[1756958473705,0.02349684,111270.0,111260.0,2.11289712]
[1756958476409,0.04754684,111270.0,111260.0,1.86289712]
[1756958476615,0.40834684,111270.0,111260.0,1.50197712]
[1756958476914,0.40834684,111270.0,111260.0,1.50261712]
[1756958479613,0.38429684,111270.0,111260.0,1.50261712]
[1756958481912,0.40834684,111270.0,111260.0,1.50289712]
[1756958482514,0.40834684,111270.0,111260.0,0.67581712]
[1756958482715,0.40834684,111270.0,111260.0,1.50269712]
[1756958482914,0.40834684,111270.0,111260.0,0.67581712]
[1756958483116,0.40834684,111270.0,111260.0,1.50253712]
[1756958485112,0.40834684,111270.0,111260.0,1.13116]
[1756958485313,0.40834684,111270.0,111260.0,1.50253712]
[1756958487118,0.38429684,111270.0,111260.0,1.50253712]
[1756958489513,0.02349684,111270.0,111260.0,1.86333712]
[1756958490114,0.02449684,111270.0,111260.0,1.86333712]
[1756958490320,0.02349684,111270.0,111260.0,1.50221712]
[1756958495829,0.02349684,111270.0,111260.0,0.67581712]
[1756958496030,0.02349684,111270.0,111260.0,1.50237712]
[1756958496722,0.38429684,111270.0,111260.0,1.50237712]
[1756958500132,0.02349684,111270.0,111260.0,1.50237712]
[1756958500527,0.02349684,111270.0,111260.0,1.131]
[1756958500825,0.40829684,111270.0,111260.0,1.50197712]
[1756958501030,0.38429684,111270.0,111260.0,1.50197712]
[1756958501231,0.38429684,111270.0,111260.0,1.1306]
[1756958501426,0.38429684,111270.0,111260.0,1.50197712]
[1756958501628,0.38429684,111270.0,111260.0,1.1306]
[1756958501832,0.38429684,111270.0,111260.0,1.50197712]
[1756958505227,0.02349684,111270.0,111260.0,2.95595768]
[1756958505429,0.02349684,111270.0,111260.0,3.31675768]
[1756958506233,0.02349684,111270.0,111260.0,2.95595768]
[1756958506532,0.02349684,111270.0,111260.0,2.86610848]
[1756958508232,0.02349684,111270.0,111260.0,2.95595758]
[1756958509728,0.02349684,111270.0,111260.0,2.96595758]
[1756958509925,0.02349684,111270.0,111260.0,0.56444]
[1756958510133,0.02349684,111270.0,111260.0,2.88190848]
[1756958510826,0.02349684,111270.0,111260.0,1.76977712]
[1756958511232,0.02249684,111270.0,111260.0,1.77205712]
[1756958511932,0.02249684,111270.0,111260.0,0.93981712]
[1756958512133,0.02249684,111270.0,111260.0,1.77205712]
[1756958512931,0.02249684,111270.0,111260.0,1.77189712]
[1756958513729,0.02249684,111270.0,111260.0,2.23312344]
[1756958514127,0.02249684,111270.0,111260.0,1.31119424]
[1756958514429,0.02249684,111270.0,111260.0,2.14299424]
[1756958514823,0.02249684,111270.0,111260.0,1.31119424]
[1756958515023,0.02249684,111270.0,111260.0,2.14271424]
[1756958515232,0.02249684,111270.0,111260.0,1.31119424]
[1756958515420,0.02249684,111270.0,111260.0,2.14271424]
[1756958515625,0.02249684,111270.0,111260.0,2.14263424]
[1756958515932,0.02249684,111270.0,111260.0,1.52121712]
[1756958516231,0.27249684,111270.0,111260.0,1.52121712]
[1756958516426,0.02249684,111270.0,111260.0,1.52121712]
[1756958516627,0.02249684,111270.0,111260.0,2.72519768]
[1756958520235,0.02249684,111270.0,111260.0,1.89379768]
[1756958520534,0.02249684,111270.0,111260.0,2.72475768]
[1756958520733,0.02249684,111270.0,111260.0,1.2392492]
[1756958520934,0.02249684,111270.0,111260.0,2.72475768]
[1756958521931,0.02249684,111270.0,111260.0,1.52049712]
[1756958522136,0.29649684,111270.0,111260.0,1.52069712]
[1756958522634,0.29649684,111270.0,111260.0,0.68981712]
[1756958523139,0.29649684,111270.0,111260.0,1.52057712]
[1756958523334,0.29649684,111270.0,111260.0,0.68981712]
[1756958523537,0.29649684,111270.0,111260.0,1.52065712]
[1756958524438,0.29649684,111270.0,111260.0,0.42461712]
[1756958524642,0.29649684,111270.0,111260.0,1.25613712]
[1756958525736,0.29649684,111270.0,111260.0,0.88476]
[1756958525936,0.29649684,111270.0,111260.0,1.25613712]
[1756958527739,0.29649684,111270.0,111260.0,0.42461712]
[1756958527931,0.29649684,111270.0,111260.0,1.25557712]
[1756958529142,0.27249684,111270.0,111260.0,1.25557712]
[1756958529536,0.27249684,111270.0,111260.0,1.25557152]
[1756958531634,0.29547684,111270.0,111260.0,0.05324]
[1756958531834,0.29547684,111270.0,111260.0,1.25569152]
[1756958532034,0.27249684,111270.0,111260.0,1.25589152]
[1756958532336,0.29547684,111270.0,111260.0,0.88452]
[1756958532538,0.29547684,111270.0,111260.0,1.25589152]
[1756958533430,0.27249684,111270.0,111260.0,1.25589152]
[1756958533634,0.27249684,111270.0,111260.0,1.52109152]
[1756958537339,0.02249684,111270.0,111260.0,2.06553234]
[1756958544340,0.02249684,111270.0,111260.0,2.80827538]
[1756958545554,0.02249684,111270.0,111260.0,3.05827538]
[1756958550247,0.0011,111270.0,111260.0,3.05827538]
[1756958550853,0.07123883,111300.0,111290.0,0.03844]
[1756958551048,0.46281617,111300.0,111290.0,1.24229152]
[1756958551755,0.71281617,111300.0,111290.0,1.24229152]
[1756958552052,0.66855734,111300.0,111290.0,1.24349152]
[1756958552240,0.66855734,111300.0,111290.0,1.24337152]
[1756958553350,0.29855734,111300.0,111290.0,1.24337152]
[1756958554649,0.34681617,111300.0,111290.0,1.24337152]
[1756958556052,0.34681617,111300.0,111290.0,0.87176]
[1756958556252,0.34681617,111300.0,111290.0,1.24313152]
[1756958556651,0.34681617,111300.0,111290.0,1.25207833]
[1756958557453,0.34681617,111300.0,111290.0,1.51727833]
[1756958560756,0.34681617,111300.0,111290.0,0.68515833]
[1756958561058,0.29855734,111300.0,111290.0,1.51643833]
[1756958566955,0.04855734,111300.0,111290.0,1.51643833]
[1756958567158,0.04855734,111300.0,111290.0,2.13780985]
[1756958567159,0.02557734,111300.0,111290.0,2.13780985]
[1756958567561,0.02557734,111300.0,111290.0,1.83948651]
[1756958567754,0.02557734,111300.0,111290.0,1.91316651]
[1756958568069,0.02557734,111300.0,111290.0,2.28453803]
[1756958568261,0.02557734,111300.0,111290.0,1.91316651]
[1756958568663,0.02557734,111300.0,111290.0,3.02728107]
[1756958569763,0.02557734,111300.0,111290.0,1.54179499]
[1756958569965,0.02557734,111300.0,111290.0,4.92580107]
[1756958572665,0.02557734,111300.0,111290.0,4.92480107]
[1756958572863,0.02557734,111300.0,111290.0,3.81056651]
[1756958573756,0.02557734,111300.0,111290.0,3.54536651]
[1756958577170,0.02557734,111300.0,111290.0,3.91673803]
[1756958578269,0.02557734,111300.0,111290.0,4.65948107]
[1756958578468,0.02557734,111300.0,111290.0,4.75930617]
[1756958578867,0.02557734,111300.0,111290.0,5.02386617]
[1756958579367,0.02557734,111300.0,111290.0,4.77386617]
[1756958580072,0.02557734,111300.0,111290.0,4.85706617]
[1756958589871,0.002,111300.0,111290.0,4.85706617]
[1756958590076,0.0001,111310.0,111300.0,0.126717]
[1756958590277,0.02525,111320.0,111310.0,0.0369]
[1756958590476,0.02515,111320.0,111310.0,0.40827152]
[1756958591080,0.02515,111320.0,111310.0,1.23675152]
[1756958591282,0.02515,111320.0,111310.0,1.23695152]
[1756958591480,0.02515,111320.0,111310.0,1.23664458]
[1756958592678,0.02515,111320.0,111310.0,0.86554]
[1756958592877,0.02515,111320.0,111310.0,1.50180458]
[1756958593174,0.02915,111320.0,111310.0,1.50280458]
[1756958593381,0.03115,111320.0,111310.0,1.50256458]
[1756958593886,1.00221458,111320.0,111310.0,0.3033]
[1756958594182,1.00221458,111320.0,111310.0,1.095]
[1756958594183,1.05769341,111320.0,111310.0,1.095]
[1756958594482,1.00943458,111320.0,111310.0,1.095]
[1756958594683,1.07366265,111320.0,111310.0,1.095]
[1756958595484,1.07366265,111320.0,111310.0,0.2664]
[1756958595680,1.07366265,111320.0,111310.0,1.09512]
[1756958596285,0.35259807,111320.0,111310.0,1.09512]
[1756958596484,1.09366265,111320.0,111310.0,1.09512]
[1756958597684,1.09366265,111320.0,111310.0,0.2664]
[1756958597989,1.09366265,111320.0,111310.0,1.0952]
[1756958598695,1.09366265,111320.0,111310.0,0.0012]
[1756958598891,1.09366265,111320.0,111310.0,0.82992]
[1756958599089,1.02943458,111320.0,111310.0,0.82992]
[1756958600196,1.02943458,111320.0,111310.0,0.70856939]
[1756958600394,1.10965332,111320.0,111310.0,0.70856939]
[1756958600594,0.73858874,111320.0,111310.0,0.70856939]
[1756958600795,1.10965332,111320.0,111310.0,0.70856939]
[1756958600994,1.10965332,111320.0,111290.0,2.07037]
[1756958601196,0.37106458,111300.0,111290.0,2.07027]
[1756958601394,0.68106458,111300.0,111290.0,2.89863]
[1756958601595,0.37106458,111300.0,111290.0,2.89863]
[1756958601991,0.39211307,111300.0,111290.0,2.89863]
[1756958602197,0.80022234,111300.0,111290.0,2.89863]
[1756958602391,0.44021545,111300.0,111290.0,2.89863]
[1756958602898,0.77727399,111300.0,111290.0,2.89863]
[1756958603293,0.71411307,111300.0,111290.0,2.89863]
[1756958603802,0.39411307,111300.0,111290.0,2.89863]
[1756958604299,0.44220378,111300.0,111290.0,2.89863]
[1756958605102,0.0711392,111300.0,111290.0,3.26969458]
[1756958606102,0.0711392,111300.0,111290.0,2.89863]
[1756958607505,0.02304849,111300.0,111290.0,2.89863]
[1756958611700,0.02304849,111300.0,111290.0,3.26969458]
[1756958612096,0.02304849,111300.0,111290.0,4.47271342]
[1756958612499,0.02304849,111300.0,111290.0,4.48271342]
[1756958612698,0.02304849,111300.0,111290.0,4.73271342]
[1756958613400,0.02304849,111300.0,111290.0,4.73571342]
[1756958613401,0.02204849,111300.0,111290.0,4.73571342]
[1756958613602,0.02204849,111300.0,111290.0,5.00291342]
[1756958614197,0.001,111300.0,111290.0,5.00291342]
[1756958614600,0.001,111300.0,111290.0,5.07487669]
[1756958614807,0.02225691,111300.0,111290.0,5.07487669]
[1756958615109,0.02225691,111300.0,111290.0,5.07587669]
[1756958615407,0.02225691,111300.0,111290.0,4.98605159]
[1756958615901,0.02225691,111300.0,111290.0,4.24392243]
[1756958617710,0.02225691,111300.0,111290.0,4.98605159]
[1756958621316,0.02225691,111300.0,111290.0,3.62333785]
[1756958623606,0.02225691,111300.0,111290.0,3.99440243]
[1756958623812,0.02225691,111300.0,111290.0,3.72920243]
[1756958625815,0.02225691,111300.0,111290.0,2.98707327]
[1756958626013,0.02225691,111300.0,111290.0,3.72920243]
[1756958627711,0.02225691,111300.0,111290.0,3.71920243]
[1756958630623,0.001,111300.0,111290.0,3.71920243]
[1756958630809,0.001,111300.0,111290.0,4.46133159]
[1756958631520,0.02213118,111300.0,111290.0,4.46133159]
[1756958634725,0.02213118,111300.0,111290.0,2.97707327]
[1756958635021,0.02213118,111300.0,111290.0,4.46133159]
[1756958635227,0.02213118,111300.0,111290.0,4.81115669]
[1756958635427,0.02213118,111300.0,111290.0,3.89249159]
[1756958635629,0.02213118,111300.0,111290.0,4.72049159]
[1756958636329,0.02213118,111300.0,111290.0,3.35729785]
[1756958636523,0.02213118,111300.0,111290.0,3.35725785]
[1756958636724,0.02213118,111300.0,111290.0,3.72832243]
[1756958636920,0.02213118,111300.0,111290.0,2.15823327]